[Event "FIDE Women's Grand Swiss 2023"]
[Site "Villa Marina, Douglas, Isle of Man, Isle Of Man"]
[Date "2023.10.29"]
[Round "5.11"]
[White "Shuvalova, Polina"]
[Black "Cori T., Deysi"]
[Result "1/2-1/2"]
[TimeControl "40/90 + 30 + 30s/move"]
[WhiteFideId "24171760"]
[BlackFideId "3801934"]
[WhiteElo "2506"]
[BlackElo "2367"]

1. e4 {[%clk 01:30:57]} {[%emt 00:00:02]} g6 {[%clk 01:30:41]} {[%emt
00:00:20]} 2. d4 {[%clk 01:31:17]} {[%emt 00:00:10]} Bg7 {[%clk 01:30:56]}
{[%emt 00:00:14]} 3. Nc3 {[%clk 01:30:36]} {[%emt 00:01:11]} d6 {[%clk
01:31:01]} {[%emt 00:00:25]} 4. Be3 {[%clk 01:30:37]} {[%emt 00:00:29]} a6
{[%clk 01:30:35]} {[%emt 00:00:56]} 5. Nf3 {[%clk 01:30:37]} {[%emt 00:00:30]}
b5 {[%clk 01:25:55]} {[%emt 00:05:10]} 6. h4 {[%clk 01:30:42]} {[%emt
00:00:26]} h5 {[%clk 01:21:35]} {[%emt 00:04:50]} 7. Bd3 {[%clk 01:29:42]}
{[%emt 00:01:30]} Bg4 {[%clk 01:15:41]} {[%emt 00:06:23]} 8. Qd2 {[%clk
01:27:37]} {[%emt 00:02:35]} Nd7 {[%clk 01:03:53]} {[%emt 00:12:18]} 9. Ng5
{[%clk 01:17:51]} {[%emt 00:10:16]} c5 {[%clk 01:04:01]} {[%emt 00:00:22]} 10.
dxc5 {[%clk 01:16:37]} {[%emt 00:01:44]} Nxc5 {[%clk 01:04:26]} {[%emt
00:00:05]} 11. f3 {[%clk 01:13:56]} {[%emt 00:03:10]} Bd7 {[%clk 01:01:35]}
{[%emt 00:03:22]} 12. O-O {[%clk 01:12:16]} {[%emt 00:02:10]} Rc8 {[%clk
00:57:51]} {[%emt 00:04:14]} 13. Rae1 {[%clk 01:08:20]} {[%emt 00:04:25]} Nf6
{[%clk 00:53:39]} {[%emt 00:04:42]} 14. Kh1 {[%clk 01:03:45]} {[%emt 00:05:05]}
Qc7 {[%clk 00:47:48]} {[%emt 00:06:21]} 15. Bd4 {[%clk 01:02:43]} {[%emt
00:01:32]} Nxd3 {[%clk 00:35:19]} {[%emt 00:12:59]} 16. cxd3 {[%clk 01:01:57]}
{[%emt 00:01:16]} e5 {[%clk 00:35:44]} {[%emt 00:00:05]} 17. Be3 {[%clk
00:57:13]} {[%emt 00:05:13]} O-O {[%clk 00:34:06]} {[%emt 00:02:08]} 18. Rc1
{[%clk 00:51:54]} {[%emt 00:05:49]} Qb7 {[%clk 00:33:24]} {[%emt 00:01:12]} 19.
Ne2 {[%clk 00:48:36]} {[%emt 00:03:47]} b4 {[%clk 00:30:41]} {[%emt 00:03:14]}
20. d4 {[%clk 00:43:41]} {[%emt 00:05:25]} a5 {[%clk 00:28:00]} {[%emt
00:03:12]} 21. Rfd1 {[%clk 00:43:37]} {[%emt 00:00:33]} Ba4 {[%clk 00:24:20]}
{[%emt 00:04:10]} 22. Re1 {[%clk 00:40:45]} {[%emt 00:03:22]} Bb5 {[%clk
00:20:36]} {[%emt 00:04:14]} 23. d5 {[%clk 00:36:19]} {[%emt 00:04:56]} Bd7
{[%clk 00:16:46]} {[%emt 00:04:20]} 24. Kh2 {[%clk 00:33:54]} {[%emt 00:02:55]}
Rxc1 {[%clk 00:12:04]} {[%emt 00:05:12]} 25. Rxc1 {[%clk 00:33:16]} {[%emt
00:01:08]} Rc8 {[%clk 00:12:29]} {[%emt 00:00:05]} 26. Rxc8+ {[%clk 00:29:48]}
{[%emt 00:03:58]} Qxc8 {[%clk 00:12:20]} {[%emt 00:00:39]} 27. Qc1 {[%clk
00:27:08]} {[%emt 00:03:10]} Qa6 {[%clk 00:12:26]} {[%emt 00:00:24]} 28. Qc2
{[%clk 00:27:22]} {[%emt 00:00:15]} Bh6 {[%clk 00:11:15]} {[%emt 00:01:41]} 29.
Nc1 {[%clk 00:22:29]} {[%emt 00:05:23]} Ne8 {[%clk 00:09:19]} {[%emt 00:02:26]}
30. Qd2 {[%clk 00:20:39]} {[%emt 00:02:20]} Qf1 {[%clk 00:08:15]} {[%emt
00:01:34]} 31. Nb3 {[%clk 00:20:29]} {[%emt 00:00:40]} a4 {[%clk 00:06:03]}
{[%emt 00:02:42]} 32. Nc1 {[%clk 00:15:33]} {[%emt 00:05:26]} Qc4 {[%clk
00:05:06]} {[%emt 00:01:27]} 33. Nh3 {[%clk 00:14:16]} {[%emt 00:01:46]} Bxe3
{[%clk 00:05:02]} {[%emt 00:00:34]} 34. Qxe3 {[%clk 00:14:43]} {[%emt
00:00:03]} Qc2 {[%clk 00:05:19]} {[%emt 00:00:14]} 35. Nd3 {[%clk 00:14:21]}
{[%emt 00:00:52]} a3 {[%clk 00:03:11]} {[%emt 00:02:39]} 36. bxa3 {[%clk
00:12:07]} {[%emt 00:02:43]} bxa3 {[%clk 00:03:39]} {[%emt 00:00:02]} 37. Nb4
{[%clk 00:10:42]} {[%emt 00:01:54]} Qb2 {[%clk 00:03:21]} {[%emt 00:00:49]} 38.
Qb6 {[%clk 00:11:05]} {[%emt 00:00:07]} Bxh3 {[%clk 00:01:29]} {[%emt
00:02:22]} 39. Kxh3 {[%clk 00:11:23]} {[%emt 00:00:12]} Qb1 {[%clk 00:00:31]}
{[%emt 00:01:29]} 40. Kh2 {[%clk 00:10:45]} {[%emt 00:01:07]} Kg7 {[%clk
00:00:42]} {[%emt 00:00:20]} 41. Qb8 {[%clk 00:09:58]} {[%emt 00:01:18]} Qe1
{[%clk 00:26:09]} {[%emt 00:05:03]} 42. Nc2 {[%clk 00:30:34]} {[%emt 00:09:54]}
Qxh4+ {[%clk 00:24:07]} {[%emt 00:02:32]} 43. Kg1 {[%clk 00:31:00]} {[%emt
00:00:04]} Qg5 {[%clk 00:24:23]} {[%emt 00:00:14]} 44. Qb3 {[%clk 00:30:36]}
{[%emt 00:00:54]} Qd2 {[%clk 00:12:25]} {[%emt 00:12:29]} 45. Nxa3 {[%clk
00:30:03]} {[%emt 00:01:03]} Qe1+ {[%clk 00:12:49]} {[%emt 00:00:06]} 46. Kh2
{[%clk 00:30:29]} {[%emt 00:00:04]} Qh4+ {[%clk 00:13:13]} {[%emt 00:00:06]} 47.
Kg1 {[%clk 00:30:57]} {[%emt 00:00:03]} Qe1+ {[%clk 00:13:40]} {[%emt
00:00:04]} 48. Kh2 {[%clk 00:31:24]} {[%emt 00:00:03]} h4 {[%clk 00:12:48]}
{[%emt 00:01:21]} 49. Nc4 {[%clk 00:26:22]} {[%emt 00:05:32]} Qg3+ {[%clk
00:12:52]} {[%emt 00:00:26]} 50. Kh1 {[%clk 00:26:46]} {[%emt 00:00:06]} Qe1+
{[%clk 00:13:09]} {[%emt 00:00:13]} 51. Kh2 {[%clk 00:27:15]} {[%emt 00:00:02]}
Qg3+ {[%clk 00:04:59]} {[%emt 00:08:40]} 52. Kh1 {[%clk 00:27:40]} {[%emt
00:00:04]} h3 {[%clk 00:04:45]} {[%emt 00:00:45]} 53. gxh3 {[%clk 00:27:53]}
{[%emt 00:00:18]} Qe1+ {[%clk 00:05:04]} {[%emt 00:00:10]} 54. Kg2 {[%clk
00:26:46]} {[%emt 00:01:37]} Qe2+ {[%clk 00:05:33]} {[%emt 00:00:01]} 55. Kg1
{[%clk 00:27:10]} {[%emt 00:00:05]} Qe1+ {[%clk 00:05:43]} {[%emt 00:00:20]} 56.
Kg2 {[%clk 00:27:35]} {[%emt 00:00:06]} Qe2+ {[%clk 00:06:11]} {[%emt
00:00:02]} 57. Kg1 {[%clk 00:27:55]} {[%emt 00:00:10]} Qe1+ {[%clk 00:04:31]}
{[%emt 00:02:10]} 1/2-1/2

[Event "FIDE Women's Grand Swiss 2023"]
[Site "Villa Marina, Douglas, Isle of Man, Isle Of Man"]
[Date "2023.10.29"]
[Round "5.12"]
[White "Guichard, Pauline"]
[Black "Mammadzada, Gunay"]
[Result "0-1"]
[TimeControl "40/90 + 30 + 30s/move"]
[WhiteFideId "639370"]
[BlackFideId "13403729"]
[WhiteElo "2358"]
[BlackElo "2441"]

1. d4 {[%clk 01:30:58]} Nf6 {[%clk 01:30:50]} {[%emt 00:00:11]} 2. c4 {[%clk
01:31:19]} {[%emt 00:00:08]} e6 {[%clk 01:31:04]} {[%emt 00:00:16]} 3. Nc3
{[%clk 01:31:36]} {[%emt 00:00:12]} Bb4 {[%clk 01:31:24]} {[%emt 00:00:10]} 4.
e3 {[%clk 01:31:56]} {[%emt 00:00:10]} O-O {[%clk 01:31:28]} {[%emt 00:00:27]}
5. Bd2 {[%clk 01:32:10]} {[%emt 00:00:15]} d5 {[%clk 01:31:12]} {[%emt
00:00:46]} 6. Nf3 {[%clk 01:32:12]} {[%emt 00:00:28]} Nbd7 {[%clk 01:25:21]}
{[%emt 00:06:22]} 7. Rc1 {[%clk 01:32:10]} {[%emt 00:00:32]} c6 {[%clk
01:20:55]} {[%emt 00:04:55]} 8. Bd3 {[%clk 01:32:16]} {[%emt 00:00:24]} Qe7
{[%clk 01:21:19]} {[%emt 00:00:07]} 9. O-O {[%clk 01:21:34]} {[%emt 00:11:12]}
dxc4 {[%clk 01:20:16]} {[%emt 00:01:33]} 10. Bxc4 {[%clk 01:21:47]} {[%emt
00:00:17]} e5 {[%clk 01:19:27]} {[%emt 00:01:19]} 11. Qc2 {[%clk 01:18:56]}
{[%emt 00:03:21]} Bxc3 {[%clk 01:13:38]} {[%emt 00:06:20]} 12. Bxc3 {[%clk
01:17:33]} {[%emt 00:01:53]} e4 {[%clk 01:14:02]} {[%emt 00:00:06]} 13. Ne5
{[%clk 01:15:55]} {[%emt 00:02:08]} Nb6 {[%clk 01:14:01]} {[%emt 00:00:31]} 14.
Be2 {[%clk 01:11:36]} {[%emt 00:04:49]} Bf5 {[%clk 01:06:18]} {[%emt 00:08:13]}
15. Bd2 {[%clk 01:00:03]} {[%emt 00:12:04]} Nfd5 {[%clk 01:05:27]} {[%emt
00:01:21]} 16. a4 {[%clk 00:52:38]} {[%emt 00:07:55]} Nd7 {[%clk 01:05:02]}
{[%emt 00:00:54]} 17. Nxd7 {[%clk 00:48:45]} {[%emt 00:04:23]} Qxd7 {[%clk
00:59:06]} {[%emt 00:06:27]} 18. b4 {[%clk 00:48:08]} {[%emt 00:01:07]} Rfe8
{[%clk 00:51:35]} {[%emt 00:08:00]} 19. Bc4 {[%clk 00:40:16]} {[%emt 00:08:21]}
a6 {[%clk 00:39:51]} {[%emt 00:12:15]} 20. Bxd5 {[%clk 00:34:13]} {[%emt
00:06:32]} Qxd5 {[%clk 00:39:26]} {[%emt 00:00:55]} 21. Qd1 {[%clk 00:34:14]}
{[%emt 00:00:29]} Qd7 {[%clk 00:38:09]} {[%emt 00:01:47]} 22. Rc5 {[%clk
00:31:50]} {[%emt 00:02:55]} b6 {[%clk 00:37:12]} {[%emt 00:01:27]} 23. Rc1
{[%clk 00:31:27]} {[%emt 00:00:52]} Re6 {[%clk 00:37:08]} {[%emt 00:00:34]} 24.
a5 {[%clk 00:22:13]} {[%emt 00:09:44]} b5 {[%clk 00:32:04]} {[%emt 00:05:35]}
25. Rc5 {[%clk 00:19:13]} {[%emt 00:03:30]} Rg6 {[%clk 00:32:09]} {[%emt
00:00:25]} 26. f4 {[%clk 00:19:28]} {[%emt 00:00:15]} exf3 {[%clk 00:15:24]}
{[%emt 00:17:15]} 27. Qxf3 {[%clk 00:19:52]} {[%emt 00:00:05]} Bd3 {[%clk
00:15:18]} {[%emt 00:00:35]} 28. Rf2 {[%clk 00:16:45]} {[%emt 00:03:39]} Re8
{[%clk 00:11:57]} {[%emt 00:03:51]} 29. Qh5 {[%clk 00:16:08]} {[%emt 00:01:06]}
f5 {[%clk 00:11:19]} {[%emt 00:01:09]} 30. Qd1 {[%clk 00:04:05]} {[%emt
00:12:33]} Be4 {[%clk 00:11:15]} {[%emt 00:00:34]} 31. Qc1 {[%clk 00:02:31]}
{[%emt 00:02:04]} Bd5 {[%clk 00:08:28]} {[%emt 00:03:16]} 32. Qf1 {[%clk
00:02:06]} {[%emt 00:00:55]} Rf8 {[%clk 00:06:30]} {[%emt 00:02:26]} 33. Bc1
{[%clk 00:01:55]} {[%emt 00:00:44]} Rff6 {[%clk 00:06:44]} {[%emt 00:00:16]} 34.
Rcc2 {[%clk 00:02:09]} {[%emt 00:00:15]} Be4 {[%clk 00:06:47]} {[%emt
00:00:27]} 35. Rc5 {[%clk 00:01:14]} {[%emt 00:01:26]} Rg4 {[%clk 00:06:28]}
{[%emt 00:00:48]} 36. Re5 {[%clk 00:01:29]} {[%emt 00:00:17]} Rfg6 {[%clk
00:02:07]} {[%emt 00:04:50]} 37. g3 {[%clk 00:01:53]} {[%emt 00:00:05]} h5
{[%clk 00:01:16]} {[%emt 00:01:22]} 38. Rf4 {[%clk 00:02:00]} {[%emt 00:00:23]}
h4 {[%clk 00:00:55]} {[%emt 00:00:50]} 39. Rxg4 {[%clk 00:00:41]} {[%emt
00:01:48]} Rxg4 {[%clk 00:01:24]} {[%emt 00:00:01]} 40. Kf2 {[%clk 00:00:37]}
{[%emt 00:00:34]} Qf7 {[%clk 00:01:05]} {[%emt 00:00:47]} 41. Qe2 {[%clk
00:19:58]} {[%emt 00:11:11]} hxg3+ {[%clk 00:30:32]} {[%emt 00:01:03]} 42. hxg3
{[%clk 00:20:05]} {[%emt 00:00:23]} Qh5 {[%clk 00:30:47]} {[%emt 00:00:15]} 43.
Ke1 {[%clk 00:20:12]} {[%emt 00:00:22]} Qh3 {[%clk 00:26:53]} {[%emt 00:04:23]}
44. Qf2 {[%clk 00:15:33]} {[%emt 00:05:10]} Rxg3 {[%clk 00:25:46]} {[%emt
00:01:38]} 45. Re8+ {[%clk 00:15:52]} {[%emt 00:00:11]} Kh7 {[%clk 00:26:12]}
{[%emt 00:00:04]} 0-1

[Event "FIDE Women's Grand Swiss 2023"]
[Site "Villa Marina, Douglas, Isle of Man, Isle Of Man"]
[Date "2023.10.29"]
[Round "5.13"]
[White "Socko, Monika"]
[Black "Ushenina, Anna"]
[Result "1/2-1/2"]
[TimeControl "40/90 + 30 + 30s/move"]
[WhiteFideId "1106619"]
[BlackFideId "14110911"]
[WhiteElo "2380"]
[BlackElo "2434"]

1. d4 {[%clk 01:30:58]} d5 {[%clk 01:30:41]} {[%emt 00:00:20]} 2. Nf3 {[%clk
01:31:20]} {[%emt 00:00:07]} e6 {[%clk 01:30:47]} {[%emt 00:00:26]} 3. Bf4
{[%clk 01:29:40]} {[%emt 00:02:09]} Bd6 {[%clk 01:31:08]} {[%emt 00:00:10]} 4.
e3 {[%clk 01:29:25]} {[%emt 00:00:45]} Bxf4 {[%clk 01:31:20]} {[%emt 00:00:18]}
5. exf4 {[%clk 01:29:50]} {[%emt 00:00:04]} b6 {[%clk 01:31:36]} {[%emt
00:00:15]} 6. c3 {[%clk 01:28:15]} {[%emt 00:02:04]} Ne7 {[%clk 01:31:29]}
{[%emt 00:00:38]} 7. Bd3 {[%clk 01:27:17]} {[%emt 00:01:27]} O-O {[%clk
01:31:25]} {[%emt 00:00:34]} 8. O-O {[%clk 01:22:40]} {[%emt 00:05:07]} Ba6
{[%clk 01:31:27]} {[%emt 00:00:28]} 9. Re1 {[%clk 01:20:40]} {[%emt 00:02:29]}
Bxd3 {[%clk 01:30:43]} {[%emt 00:01:15]} 10. Qxd3 {[%clk 01:21:04]} {[%emt
00:00:04]} h6 {[%clk 01:06:47]} {[%emt 00:24:26]} 11. Nbd2 {[%clk 01:17:57]}
{[%emt 00:03:38]} c5 {[%clk 00:51:24]} {[%emt 00:15:53]} 12. Nf1 {[%clk
01:11:47]} {[%emt 00:06:39]} Qd6 {[%clk 00:49:53]} {[%emt 00:02:02]} 13. g3
{[%clk 01:10:46]} {[%emt 00:01:30]} Nbc6 {[%clk 00:49:45]} {[%emt 00:00:39]} 14.
Ne3 {[%clk 01:10:48]} {[%emt 00:00:28]} cxd4 {[%clk 00:47:05]} {[%emt
00:03:10]} 15. Nxd4 {[%clk 01:10:04]} {[%emt 00:01:14]} Nxd4 {[%clk 00:46:37]}
{[%emt 00:00:58]} 16. Qxd4 {[%clk 01:10:26]} {[%emt 00:00:08]} Rac8 {[%clk
00:40:26]} {[%emt 00:06:41]} 17. Rad1 {[%clk 01:09:13]} {[%emt 00:01:42]} Rfd8
{[%clk 00:39:47]} {[%emt 00:01:09]} 18. Qd3 {[%clk 01:07:05]} {[%emt 00:02:38]}
Qd7 {[%clk 00:37:07]} {[%emt 00:03:11]} 19. Qe2 {[%clk 01:04:12]} {[%emt
00:03:22]} b5 {[%clk 00:35:48]} {[%emt 00:01:50]} 20. Rd2 {[%clk 01:01:50]}
{[%emt 00:02:51]} Qb7 {[%clk 00:34:19]} {[%emt 00:01:59]} 21. Red1 {[%clk
01:00:53]} {[%emt 00:01:26]} a5 {[%clk 00:30:15]} {[%emt 00:04:35]} 22. Qf3
{[%clk 00:53:22]} {[%emt 00:08:00]} Rc5 {[%clk 00:19:12]} {[%emt 00:11:33]} 23.
f5 {[%clk 00:45:46]} {[%emt 00:08:06]} exf5 {[%clk 00:19:28]} {[%emt 00:00:15]}
24. Nxf5 {[%clk 00:45:43]} {[%emt 00:00:33]} Nxf5 {[%clk 00:19:54]} {[%emt
00:00:04]} 25. Qxf5 {[%clk 00:46:07]} {[%emt 00:00:05]} b4 {[%clk 00:20:01]}
{[%emt 00:00:24]} 26. c4 {[%clk 00:39:45]} {[%emt 00:06:51]} Rxc4 {[%clk
00:19:42]} {[%emt 00:00:49]} 27. Rxd5 {[%clk 00:40:09]} {[%emt 00:00:06]} Rxd5
{[%clk 00:19:43]} {[%emt 00:00:29]} 28. Qxd5 {[%clk 00:40:35]} {[%emt
00:00:04]} Qxd5 {[%clk 00:18:50]} {[%emt 00:01:24]} 29. Rxd5 {[%clk 00:40:59]}
{[%emt 00:00:04]} Rc2 {[%clk 00:18:51]} {[%emt 00:00:30]} 30. Rxa5 {[%clk
00:41:12]} {[%emt 00:00:18]} Rxb2 {[%clk 00:19:17]} {[%emt 00:00:03]} 31. Ra8+
{[%clk 00:41:25]} {[%emt 00:00:16]} 1/2-1/2